Workbook

Sheet Dati Gen
B1: https://www.madosoft.it/prodotti/superbonus110/verifica-massimali | Q1: 1
A2: 0 | K2: Verifica Massimali | Q2: Edificio Unifamiliare
B3: PRATICA SUPERBONUS 110% | F3: N. | G3: 1 | K3: Vers.ne | L3: 2022.1.0 | P3: 1 | Q3: 1
B4: Tipologia Immobile | K4: ©2021-2022 SIM srl - www.madosoft.it
B5: 1 | F5: 2 | G5: 1 | H5: =IF(TipoEdif=2,"Denominazione : ","") ->  | Q5: Edificio Unifamiliare
B6: =IF(TipoEdif=1, IF(N_Uimm>1,"Inserire N.Unità Immobiliari =1",""),IF(N_Uimm<=1,"Inserire N.Unità Immobiliari >=2","")) ->  | H6: =IF(TipoEdif=2,"Codice Fiscale : ","") ->  | Q6: Condominio
B7: Dati Edificio | Q7: 1
B8: Comune di Ubicazione | M8: CAP | Q8: =Q7+1 -> 2
B9: Indirizzo | K9: N. | M9: Zona | N9: D | Q9: =Q8+1 -> 3
B10: =IF(TipoEdif=2,"Dati Catastali 1ª U.I.","Dati Catastali") -> Dati Catastali | C10: Cod.Comune | F10: Foglio | H10: Particella | K10: Sub. | M10: CAT. | Q10: 4
B11: Anno di Costruzione Immobile | H11: Superficie Totale Disperdente : | Q11: 5
B12: Autorizzazione Edilizia | E12: Licenza Edilizia / Titolo Edilizio | K12: =IF(E12="Licenza Edilizia / Titolo Edilizio","N.",IF(E12="Concessione in Sanatoria","N.","")) -> N. | M12: Data | Q12: 6
B13: Relazione ex Legge 10/91 Depositata al Comune in Data | K13: Prot. N. | Q13: 7
B14: Data Inizio Lavori | G14: Immobile Vincolato/Restriz.Edilizie | K14: NO | L14: Edilizia Libera | N14: NO | Q14: 8
Q15: 9
B16: DATI DI PROGETTO | C16: Oggetto Lavori : | F16: PROGETTO PER L’ADEGUAMENTO SISMICO, IL MIGLIORAMENTO ENERGETICO E PARZIALE CAMBIO DI DESTINAZIONE D’USO DEL FABBRICATO SITO IN VIA COLOMBO N.66 – FG.12 P.LLA 285 SUB.2-3 : PdC N.02/2021 del 17/03/2021 | Q16: 10
B17: Descrizione | F17: Imponibile | J17: %iva | K17: IVA | M17: Totale | Q17: 11
B18: Importo complessivo Lavori | J18: 0.1 | K18: =G18*J18 -> 0 | M18: =G18+K18 -> 0 | Q18: 12
B19: di cui Oneri/Lavori x Sicurezza | J19: =J18 -> 0.1 | K19: =G19*J19 -> 0 | M19: =G19+K19 -> 0 | Q19: 13
B20: Importo Lavori al netto della Sicurezza | G20: =G18-G19 -> 0 | J20: =J18 -> 0.1 | K20: =G20*J20 -> 0 | M20: =G20+K20 -> 0 | Q20: 14
B21: Spese tecniche (compresa iva) | G21: =M36 -> 0 | M21: =G21 -> 0 | Q21: 15
G22: Importo Complessivo Progetto : | M22: =M18+M21 -> 0 | Q22: 16
Q23: 17
B24: SPESE TECNICHE | C24: Tecnico | E24: Onorario | G24: C.Cassa | J24: IVA | M24: Totale | Q24: 18 | S24: Foto 1
B25: Redazione APE ante, Progettazione energetica | C25: Ingegnere1 | E25: 0 | G25: 0.04 | H25: =E25*G25 -> 0 | J25: 0.22 | K25: =(E25+H25)*J25 -> 0 | M25: =E25+H25+K25 -> 0 | Q25: 19 | R25: =IF(C25<>"",IFERROR(IF(VLOOKUP(C25,$B$44:$D$51,3,FALSE)="NO",IF(J25=0,"Attenzione, tecnico esente iva (Forfettario) dovrebbe applicare sconto in fattura. Le relative competenze saranno inserite nella Fattura del G.C. come rimborso spese con IVA=0 <<<<<< Consulenti non d'accordo",""),""),""),"") -> 
B26: Progettazione e DD.LL. | C26: Ingegnere1 | E26: 0 | G26: 0.04 | H26: 0 | J26: 0.22 | K26: 0 | M26: =E26+H26+K26 -> 0 | Q26: 20 | R26: =IF(C26<>"",IFERROR(IF(VLOOKUP(C26,$B$44:$D$51,3,FALSE)="NO",IF(J26=0,"Attenzione, tecnico esente iva (Forfettario) dovrebbe applicare sconto in fattura. Le relative competenze saranno inserite nella Fattura del G.C. come rimborso spese con IVA=0 <<<<<< Consulenti non d'accordo",""),""),""),"") -> 
B27: Relazione Geologica | C27: Geologo | E27: 0 | G27: 0.04 | H27: 0 | J27: 0.22 | K27: 0 | M27: =E27+H27+K27 -> 0 | Q27: 21
B28: Collaudo | C28: Architetto1 | E28: 0 | G28: 0.04 | H28: 0 | J28: 0.22 | K28: 0 | M28: 0 | Q28: 22
B29: Redazione APE post | C29: Ingegnere1 | E29: 0 | G29: 0.04 | H29: 0 | J29: 0.22 | K29: 0 | M29: 0 | Q29: 23
E30: 0 | G30: 0.04 | H30: 0 | J30: 0.22 | K30: 0 | M30: 0 | Q30: 24
E31: 0 | G31: 0.04 | H31: 0 | J31: 0.22 | K31: 0 | M31: 0 | Q31: 25
E32: 0 | G32: 0.04 | H32: 0 | J32: 0.22 | K32: 0 | M32: 0 | Q32: 26
E33: =SUM(E25:F32) -> 0 | H33: =SUM(H25:I32) -> 0 | K33: =SUM(K25:L32) -> 0 | M33: =SUM(M25:N32) -> 0 | Q33: 27
E34: onorario | G34: c.cassa | J34: iva | M34: totale | Q34: 28
B35: Visto Conformità | C35: Consulente | D35: 0.02 | E35: =G18*D35 -> 0 | G35: 0.04 | H35: =E35*G35 -> 0 | J35: 0.22 | K35: =(E35+H35)*J35 -> 0 | M35: =E35+H35+K35 -> 0 | Q35: 29 | R35: =IF(C35<>"",IFERROR(IF(VLOOKUP(C35,$B$44:$D$51,3,FALSE)="NO",IF(J35=0,"Attenzione, tecnico esente iva (Forfettario) dovrebbe applicare sconto in fattura. Le relative competenze saranno inserite nella Fattura del G.C. come rimborso spese con IVA=0 <<<<<< Consulenti non d'accordo",""),""),""),"") -> 
E36: =E33+E35 -> 0 | H36: =H33+H35 -> 0 | K36: =K33+K35 -> 0 | M36: =M33+M35 -> 0 | Q36: 30
Q37: 31
B38: Appaltatore / General Contractor / Soggetto Principale a cui viene ceduto il credito | Q38: 32
B39: Denominazione | F39: CF/Piva | L39: Tel. | Q39: 33
B40: Indirizzo | F40: Città | L40: Mail | Q40: 34
B41: Dati Pagamento | Q41: 35
Q42: 36
B43: TECNICI | D43: Sc.to | E43: Indirizzo | G43: Città | J43: CodFisc/Piva | L43: Tel./Mail | N43: Dati Pagamento | Q43: 37
B44: Ingegnere1 | D44: SI | J44: ZFNMRA64E16C135A/04333460824 | N44: Bonifico Bancario | Zafonte Mario | Banca Unicredit | IBAN : IT35S0200843240000300246664 | Q44: 38
B45: Geologo | D45: NO | Q45: 39
B46: Architetto1 | D46: NO | Q46: 40
B47: Consulente | D47: NO | J47: CODFISCCONSULENT | Q47: 41
D48: NO | Q48: 42
D49: NO | Q49: 43
D50: NO | Q50: 44
D51: NO | Q51: 45
Q52: 46 | S52: Foto 2
Q53: 47
Q54: 48
Q55: 49
Q56: 50
Q57: 51
Q58: 52
Q59: 53
Q60: 54
Q61: 55
Q62: 56
Q63: 57
Q64: 58
Q65: 59
Q66: 60
Q67: 61
Q68: 62
Q69: 63
Q70: 64
Q71: 65
Q72: 66
Q73: =Q72+1 -> 67
Q74: 68
Q75: 69
Q76: 70
Q77: 71
Q78: 72
Q79: 73
Q80: 74
Q81: 75
Q82: 76
Q83: 77
Q84: 78
Q85: 79
Q86: 80
Q87: 81
Q88: 82
Q89: 83
Q90: 84
Q91: 85
Q92: 86
Q93: 87
Q94: 88
Q95: 89
Q96: 90
Q97: 91
Q98: 92
Q99: 93
Q100: 94
Q101: 95
Q102: 96
Q103: 97
Q104: 98
Q105: 99
Q106: 100
Q107: 101
Q108: 102
Q109: 103
Q110: 104
Q111: 105
Q112: 106
Q113: 107
Q114: 108
Q115: 109
Q116: 110
Q117: 111
Q118: 112
Q119: 113
Q120: 114
Q121: 115
Q122: 116
Q123: 117
Q124: 118
Q125: 119
Q126: 120
Q127: 121
Q128: 122
Q129: 123
Q130: 124
Q131: 125
Q132: 126
Q133: 127
Q134: 128
Q135: 129
Q136: 130
Q137: =Q136+1 -> 131
Q138: 132
Q139: 133
Q140: 134
Q141: 135
Q142: 136
Q143: 137
Q144: 138
Q145: 139
Q146: 140
Q147: 141
Q148: 142
Q149: 143
Q150: 144
Q151: 145
Q152: 146
Q153: 147
Q154: 148
Q155: 149
Q156: 150
Q157: 151
Q158: 152
Q159: 153
Q160: 154
Q161: 155
Q162: 156
Q163: 157
Q164: 158
Q165: 159
Q166: 160
Q167: 161
Q168: 162
Q169: 163
Q170: 164
Q171: 165
Q172: 166
Q173: 167
Q174: 168
Q175: 169
Q176: 170
Q177: 171
Q178: 172
Q179: 173
Q180: 174
Q181: 175
Q182: 176
Q183: 177
Q184: 178
Q185: 179
Q186: 180
Q187: 181
Q188: 182
Q189: 183
Q190: 184
Q191: 185
Q192: 186
Q193: 187
Q194: 188
Q195: 189
Q196: 190
Q197: 191
Q198: 192
Q199: 193
Q200: 194
... 806 more rows

Sheet Committenti
B1: Elenco Committenti
B2: Cognome | C2: Nome | D2: Codice Fiscale | E2: Sesso | F2: Data Nascita | G2: Nazione Nasc | H2: Comune Nascita | I2: Nazione Res. | J2: Comune Residenza | K2: Prov. | L2: Indirizzo | M2: CAP | N2: Telefono | O2: Mail
A3: =IF(B3<>"",1,"") -> 
A4: =IF(B4<>"", IF(A3<>"",A3+1,""),"") -> 
A5: =IF(B5<>"", IF(A4<>"",A4+1,""),"") -> 
A69: =IF(B69<>"", IF(A68<>"",A68+1,""),"") -> 
A133: =IF(B133<>"", IF(A132<>"",A132+1,""),"") -> 
A197: =IF(B197<>"", IF(A196<>"",A196+1,""),"") -> 
A261: =IF(B261<>"", IF(A260<>"",A260+1,""),"") -> 
A325: =IF(B325<>"", IF(A324<>"",A324+1,""),"") -> 
A389: =IF(B389<>"", IF(A388<>"",A388+1,""),"") -> 
A453: =IF(B453<>"", IF(A452<>"",A452+1,""),"") -> 
A517: =IF(B517<>"", IF(A516<>"",A516+1,""),"") -> 
A581: =IF(B581<>"", IF(A580<>"",A580+1,""),"") -> 
A645: =IF(B645<>"", IF(A644<>"",A644+1,""),"") -> 
A709: =IF(B709<>"", IF(A708<>"",A708+1,""),"") -> 
A773: =IF(B773<>"", IF(A772<>"",A772+1,""),"") -> 
A837: =IF(B837<>"", IF(A836<>"",A836+1,""),"") -> 
A901: =IF(B901<>"", IF(A900<>"",A900+1,""),"") -> 
A965: =IF(B965<>"", IF(A964<>"",A964+1,""),"") -> 

Sheet UnitàImmobiliari (hidden)
B1: Elenco Unità Immobiliari | F1: Beneficiario 1 | H1: Beneficiario 2 | J1: Beneficiario 3 | L1: Beneficiario 4 | N1: Beneficiario 5
B2: Foglio | C2: Particella | D2: Sub. | E2: Categoria | F2: Codice Fiscale | G2: Titolo Possesso | H2: Codice Fiscale | I2: Titolo Possesso | J2: Codice Fiscale | K2: Titolo Possesso | L2: Codice Fiscale | M2: Titolo Possesso | N2: Codice Fiscale | O2: Titolo Possesso | Q2: Elenco Committenti
A3: =IF(B3<>"",1,"") -> 1 | B3: =nFoglio1 -> 0 | C3: =nPlla1 -> 0 | D3: =nSUB1 -> 0 | E3: =Categoria1 -> 0 | Q3: =IF(Committenti!D3<>"",CONCATENATE(Committenti!B3," ",Committenti!C3," CF: ",Committenti!D3),"") -> 
A4: =IF(B4<>"", IF(A3<>"",A3+1,""),"") ->  | Q4: =IF(Committenti!D4<>"",CONCATENATE(Committenti!B4," ",Committenti!C4," CF: ",Committenti!D4),"") -> 
A5: =IF(B5<>"", IF(A4<>"",A4+1,""),"") ->  | Q5: =IF(Committenti!D5<>"",CONCATENATE(Committenti!B5," ",Committenti!C5," CF: ",Committenti!D5),"") -> 
Q6: =IF(Committenti!D6<>"",CONCATENATE(Committenti!B6," ",Committenti!C6," CF: ",Committenti!D6),"") -> 
Q7: =IF(Committenti!D7<>"",CONCATENATE(Committenti!B7," ",Committenti!C7," CF: ",Committenti!D7),"") -> 
Q8: =IF(Committenti!D8<>"",CONCATENATE(Committenti!B8," ",Committenti!C8," CF: ",Committenti!D8),"") -> 
Q9: =IF(Committenti!D9<>"",CONCATENATE(Committenti!B9," ",Committenti!C9," CF: ",Committenti!D9),"") -> 
Q10: =IF(Committenti!D10<>"",CONCATENATE(Committenti!B10," ",Committenti!C10," CF: ",Committenti!D10),"") -> 
Q11: =IF(Committenti!D11<>"",CONCATENATE(Committenti!B11," ",Committenti!C11," CF: ",Committenti!D11),"") -> 
Q12: =IF(Committenti!D12<>"",CONCATENATE(Committenti!B12," ",Committenti!C12," CF: ",Committenti!D12),"") -> 
Q13: =IF(Committenti!D13<>"",CONCATENATE(Committenti!B13," ",Committenti!C13," CF: ",Committenti!D13),"") -> 
Q14: =IF(Committenti!D14<>"",CONCATENATE(Committenti!B14," ",Committenti!C14," CF: ",Committenti!D14),"") -> 
Q15: =IF(Committenti!D15<>"",CONCATENATE(Committenti!B15," ",Committenti!C15," CF: ",Committenti!D15),"") -> 
Q16: =IF(Committenti!D16<>"",CONCATENATE(Committenti!B16," ",Committenti!C16," CF: ",Committenti!D16),"") -> 
Q17: =IF(Committenti!D17<>"",CONCATENATE(Committenti!B17," ",Committenti!C17," CF: ",Committenti!D17),"") -> 
Q18: =IF(Committenti!D18<>"",CONCATENATE(Committenti!B18," ",Committenti!C18," CF: ",Committenti!D18),"") -> 
Q19: =IF(Committenti!D19<>"",CONCATENATE(Committenti!B19," ",Committenti!C19," CF: ",Committenti!D19),"") -> 
Q20: =IF(Committenti!D20<>"",CONCATENATE(Committenti!B20," ",Committenti!C20," CF: ",Committenti!D20),"") -> 
Q21: =IF(Committenti!D21<>"",CONCATENATE(Committenti!B21," ",Committenti!C21," CF: ",Committenti!D21),"") -> 
Q22: =IF(Committenti!D22<>"",CONCATENATE(Committenti!B22," ",Committenti!C22," CF: ",Committenti!D22),"") -> 
Q23: =IF(Committenti!D23<>"",CONCATENATE(Committenti!B23," ",Committenti!C23," CF: ",Committenti!D23),"") -> 
Q24: =IF(Committenti!D24<>"",CONCATENATE(Committenti!B24," ",Committenti!C24," CF: ",Committenti!D24),"") -> 
Q25: =IF(Committenti!D25<>"",CONCATENATE(Committenti!B25," ",Committenti!C25," CF: ",Committenti!D25),"") -> 
Q26: =IF(Committenti!D26<>"",CONCATENATE(Committenti!B26," ",Committenti!C26," CF: ",Committenti!D26),"") -> 
Q27: =IF(Committenti!D27<>"",CONCATENATE(Committenti!B27," ",Committenti!C27," CF: ",Committenti!D27),"") -> 
Q28: =IF(Committenti!D28<>"",CONCATENATE(Committenti!B28," ",Committenti!C28," CF: ",Committenti!D28),"") -> 
Q29: =IF(Committenti!D29<>"",CONCATENATE(Committenti!B29," ",Committenti!C29," CF: ",Committenti!D29),"") -> 
Q30: =IF(Committenti!D30<>"",CONCATENATE(Committenti!B30," ",Committenti!C30," CF: ",Committenti!D30),"") -> 
Q31: =IF(Committenti!D31<>"",CONCATENATE(Committenti!B31," ",Committenti!C31," CF: ",Committenti!D31),"") -> 
Q32: =IF(Committenti!D32<>"",CONCATENATE(Committenti!B32," ",Committenti!C32," CF: ",Committenti!D32),"") -> 
Q33: =IF(Committenti!D33<>"",CONCATENATE(Committenti!B33," ",Committenti!C33," CF: ",Committenti!D33),"") -> 
Q34: =IF(Committenti!D34<>"",CONCATENATE(Committenti!B34," ",Committenti!C34," CF: ",Committenti!D34),"") -> 
Q35: =IF(Committenti!D35<>"",CONCATENATE(Committenti!B35," ",Committenti!C35," CF: ",Committenti!D35),"") -> 
Q36: =IF(Committenti!D36<>"",CONCATENATE(Committenti!B36," ",Committenti!C36," CF: ",Committenti!D36),"") -> 
Q37: =IF(Committenti!D37<>"",CONCATENATE(Committenti!B37," ",Committenti!C37," CF: ",Committenti!D37),"") -> 
Q38: =IF(Committenti!D38<>"",CONCATENATE(Committenti!B38," ",Committenti!C38," CF: ",Committenti!D38),"") -> 
Q39: =IF(Committenti!D39<>"",CONCATENATE(Committenti!B39," ",Committenti!C39," CF: ",Committenti!D39),"") -> 
Q40: =IF(Committenti!D40<>"",CONCATENATE(Committenti!B40," ",Committenti!C40," CF: ",Committenti!D40),"") -> 
Q41: =IF(Committenti!D41<>"",CONCATENATE(Committenti!B41," ",Committenti!C41," CF: ",Committenti!D41),"") -> 
Q42: =IF(Committenti!D42<>"",CONCATENATE(Committenti!B42," ",Committenti!C42," CF: ",Committenti!D42),"") -> 
Q43: =IF(Committenti!D43<>"",CONCATENATE(Committenti!B43," ",Committenti!C43," CF: ",Committenti!D43),"") -> 
Q44: =IF(Committenti!D44<>"",CONCATENATE(Committenti!B44," ",Committenti!C44," CF: ",Committenti!D44),"") -> 
Q45: =IF(Committenti!D45<>"",CONCATENATE(Committenti!B45," ",Committenti!C45," CF: ",Committenti!D45),"") -> 
Q46: =IF(Committenti!D46<>"",CONCATENATE(Committenti!B46," ",Committenti!C46," CF: ",Committenti!D46),"") -> 
Q47: =IF(Committenti!D47<>"",CONCATENATE(Committenti!B47," ",Committenti!C47," CF: ",Committenti!D47),"") -> 
Q48: =IF(Committenti!D48<>"",CONCATENATE(Committenti!B48," ",Committenti!C48," CF: ",Committenti!D48),"") -> 
Q49: =IF(Committenti!D49<>"",CONCATENATE(Committenti!B49," ",Committenti!C49," CF: ",Committenti!D49),"") -> 
Q50: =IF(Committenti!D50<>"",CONCATENATE(Committenti!B50," ",Committenti!C50," CF: ",Committenti!D50),"") -> 
Q51: =IF(Committenti!D51<>"",CONCATENATE(Committenti!B51," ",Committenti!C51," CF: ",Committenti!D51),"") -> 
Q52: =IF(Committenti!D52<>"",CONCATENATE(Committenti!B52," ",Committenti!C52," CF: ",Committenti!D52),"") -> 
Q53: =IF(Committenti!D53<>"",CONCATENATE(Committenti!B53," ",Committenti!C53," CF: ",Committenti!D53),"") -> 
Q54: =IF(Committenti!D54<>"",CONCATENATE(Committenti!B54," ",Committenti!C54," CF: ",Committenti!D54),"") -> 
Q55: =IF(Committenti!D55<>"",CONCATENATE(Committenti!B55," ",Committenti!C55," CF: ",Committenti!D55),"") -> 
Q56: =IF(Committenti!D56<>"",CONCATENATE(Committenti!B56," ",Committenti!C56," CF: ",Committenti!D56),"") -> 
Q57: =IF(Committenti!D57<>"",CONCATENATE(Committenti!B57," ",Committenti!C57," CF: ",Committenti!D57),"") -> 
Q58: =IF(Committenti!D58<>"",CONCATENATE(Committenti!B58," ",Committenti!C58," CF: ",Committenti!D58),"") -> 
Q59: =IF(Committenti!D59<>"",CONCATENATE(Committenti!B59," ",Committenti!C59," CF: ",Committenti!D59),"") -> 
Q60: =IF(Committenti!D60<>"",CONCATENATE(Committenti!B60," ",Committenti!C60," CF: ",Committenti!D60),"") -> 
Q61: =IF(Committenti!D61<>"",CONCATENATE(Committenti!B61," ",Committenti!C61," CF: ",Committenti!D61),"") -> 
Q62: =IF(Committenti!D62<>"",CONCATENATE(Committenti!B62," ",Committenti!C62," CF: ",Committenti!D62),"") -> 
Q63: =IF(Committenti!D63<>"",CONCATENATE(Committenti!B63," ",Committenti!C63," CF: ",Committenti!D63),"") -> 
Q64: =IF(Committenti!D64<>"",CONCATENATE(Committenti!B64," ",Committenti!C64," CF: ",Committenti!D64),"") -> 
Q65: =IF(Committenti!D65<>"",CONCATENATE(Committenti!B65," ",Committenti!C65," CF: ",Committenti!D65),"") -> 
Q66: =IF(Committenti!D66<>"",CONCATENATE(Committenti!B66," ",Committenti!C66," CF: ",Committenti!D66),"") -> 
Q67: =IF(Committenti!D67<>"",CONCATENATE(Committenti!B67," ",Committenti!C67," CF: ",Committenti!D67),"") -> 
Q68: =IF(Committenti!D68<>"",CONCATENATE(Committenti!B68," ",Committenti!C68," CF: ",Committenti!D68),"") -> 
A69: =IF(B69<>"", IF(A68<>"",A68+1,""),"") ->  | Q69: =IF(Committenti!D69<>"",CONCATENATE(Committenti!B69," ",Committenti!C69," CF: ",Committenti!D69),"") -> 
Q70: =IF(Committenti!D70<>"",CONCATENATE(Committenti!B70," ",Committenti!C70," CF: ",Committenti!D70),"") -> 
Q71: =IF(Committenti!D71<>"",CONCATENATE(Committenti!B71," ",Committenti!C71," CF: ",Committenti!D71),"") -> 
Q72: =IF(Committenti!D72<>"",CONCATENATE(Committenti!B72," ",Committenti!C72," CF: ",Committenti!D72),"") -> 
Q73: =IF(Committenti!D73<>"",CONCATENATE(Committenti!B73," ",Committenti!C73," CF: ",Committenti!D73),"") -> 
Q74: =IF(Committenti!D74<>"",CONCATENATE(Committenti!B74," ",Committenti!C74," CF: ",Committenti!D74),"") -> 
Q75: =IF(Committenti!D75<>"",CONCATENATE(Committenti!B75," ",Committenti!C75," CF: ",Committenti!D75),"") -> 
Q76: =IF(Committenti!D76<>"",CONCATENATE(Committenti!B76," ",Committenti!C76," CF: ",Committenti!D76),"") -> 
Q77: =IF(Committenti!D77<>"",CONCATENATE(Committenti!B77," ",Committenti!C77," CF: ",Committenti!D77),"") -> 
Q78: =IF(Committenti!D78<>"",CONCATENATE(Committenti!B78," ",Committenti!C78," CF: ",Committenti!D78),"") -> 
Q79: =IF(Committenti!D79<>"",CONCATENATE(Committenti!B79," ",Committenti!C79," CF: ",Committenti!D79),"") -> 
Q80: =IF(Committenti!D80<>"",CONCATENATE(Committenti!B80," ",Committenti!C80," CF: ",Committenti!D80),"") -> 
Q81: =IF(Committenti!D81<>"",CONCATENATE(Committenti!B81," ",Committenti!C81," CF: ",Committenti!D81),"") -> 
Q82: =IF(Committenti!D82<>"",CONCATENATE(Committenti!B82," ",Committenti!C82," CF: ",Committenti!D82),"") -> 
Q83: =IF(Committenti!D83<>"",CONCATENATE(Committenti!B83," ",Committenti!C83," CF: ",Committenti!D83),"") -> 
Q84: =IF(Committenti!D84<>"",CONCATENATE(Committenti!B84," ",Committenti!C84," CF: ",Committenti!D84),"") -> 
Q85: =IF(Committenti!D85<>"",CONCATENATE(Committenti!B85," ",Committenti!C85," CF: ",Committenti!D85),"") -> 
Q86: =IF(Committenti!D86<>"",CONCATENATE(Committenti!B86," ",Committenti!C86," CF: ",Committenti!D86),"") -> 
Q87: =IF(Committenti!D87<>"",CONCATENATE(Committenti!B87," ",Committenti!C87," CF: ",Committenti!D87),"") -> 
Q88: =IF(Committenti!D88<>"",CONCATENATE(Committenti!B88," ",Committenti!C88," CF: ",Committenti!D88),"") -> 
Q89: =IF(Committenti!D89<>"",CONCATENATE(Committenti!B89," ",Committenti!C89," CF: ",Committenti!D89),"") -> 
Q90: =IF(Committenti!D90<>"",CONCATENATE(Committenti!B90," ",Committenti!C90," CF: ",Committenti!D90),"") -> 
Q91: =IF(Committenti!D91<>"",CONCATENATE(Committenti!B91," ",Committenti!C91," CF: ",Committenti!D91),"") -> 
Q92: =IF(Committenti!D92<>"",CONCATENATE(Committenti!B92," ",Committenti!C92," CF: ",Committenti!D92),"") -> 
Q93: =IF(Committenti!D93<>"",CONCATENATE(Committenti!B93," ",Committenti!C93," CF: ",Committenti!D93),"") -> 
Q94: =IF(Committenti!D94<>"",CONCATENATE(Committenti!B94," ",Committenti!C94," CF: ",Committenti!D94),"") -> 
Q95: =IF(Committenti!D95<>"",CONCATENATE(Committenti!B95," ",Committenti!C95," CF: ",Committenti!D95),"") -> 
Q96: =IF(Committenti!D96<>"",CONCATENATE(Committenti!B96," ",Committenti!C96," CF: ",Committenti!D96),"") -> 
Q97: =IF(Committenti!D97<>"",CONCATENATE(Committenti!B97," ",Committenti!C97," CF: ",Committenti!D97),"") -> 
Q98: =IF(Committenti!D98<>"",CONCATENATE(Committenti!B98," ",Committenti!C98," CF: ",Committenti!D98),"") -> 
Q99: =IF(Committenti!D99<>"",CONCATENATE(Committenti!B99," ",Committenti!C99," CF: ",Committenti!D99),"") -> 
Q100: =IF(Committenti!D100<>"",CONCATENATE(Committenti!B100," ",Committenti!C100," CF: ",Committenti!D100),"") -> 
Q101: =IF(Committenti!D101<>"",CONCATENATE(Committenti!B101," ",Committenti!C101," CF: ",Committenti!D101),"") -> 
Q102: =IF(Committenti!D102<>"",CONCATENATE(Committenti!B102," ",Committenti!C102," CF: ",Committenti!D102),"") -> 
Q103: =IF(Committenti!D103<>"",CONCATENATE(Committenti!B103," ",Committenti!C103," CF: ",Committenti!D103),"") -> 
Q104: =IF(Committenti!D104<>"",CONCATENATE(Committenti!B104," ",Committenti!C104," CF: ",Committenti!D104),"") -> 
Q105: =IF(Committenti!D105<>"",CONCATENATE(Committenti!B105," ",Committenti!C105," CF: ",Committenti!D105),"") -> 
Q106: =IF(Committenti!D106<>"",CONCATENATE(Committenti!B106," ",Committenti!C106," CF: ",Committenti!D106),"") -> 
Q107: =IF(Committenti!D107<>"",CONCATENATE(Committenti!B107," ",Committenti!C107," CF: ",Committenti!D107),"") -> 
Q108: =IF(Committenti!D108<>"",CONCATENATE(Committenti!B108," ",Committenti!C108," CF: ",Committenti!D108),"") -> 
Q109: =IF(Committenti!D109<>"",CONCATENATE(Committenti!B109," ",Committenti!C109," CF: ",Committenti!D109),"") -> 
Q110: =IF(Committenti!D110<>"",CONCATENATE(Committenti!B110," ",Committenti!C110," CF: ",Committenti!D110),"") -> 
Q111: =IF(Committenti!D111<>"",CONCATENATE(Committenti!B111," ",Committenti!C111," CF: ",Committenti!D111),"") -> 
Q112: =IF(Committenti!D112<>"",CONCATENATE(Committenti!B112," ",Committenti!C112," CF: ",Committenti!D112),"") -> 
Q113: =IF(Committenti!D113<>"",CONCATENATE(Committenti!B113," ",Committenti!C113," CF: ",Committenti!D113),"") -> 
Q114: =IF(Committenti!D114<>"",CONCATENATE(Committenti!B114," ",Committenti!C114," CF: ",Committenti!D114),"") -> 
Q115: =IF(Committenti!D115<>"",CONCATENATE(Committenti!B115," ",Committenti!C115," CF: ",Committenti!D115),"") -> 
Q116: =IF(Committenti!D116<>"",CONCATENATE(Committenti!B116," ",Committenti!C116," CF: ",Committenti!D116),"") -> 
Q117: =IF(Committenti!D117<>"",CONCATENATE(Committenti!B117," ",Committenti!C117," CF: ",Committenti!D117),"") -> 
Q118: =IF(Committenti!D118<>"",CONCATENATE(Committenti!B118," ",Committenti!C118," CF: ",Committenti!D118),"") -> 
Q119: =IF(Committenti!D119<>"",CONCATENATE(Committenti!B119," ",Committenti!C119," CF: ",Committenti!D119),"") -> 
Q120: =IF(Committenti!D120<>"",CONCATENATE(Committenti!B120," ",Committenti!C120," CF: ",Committenti!D120),"") -> 
Q121: =IF(Committenti!D121<>"",CONCATENATE(Committenti!B121," ",Committenti!C121," CF: ",Committenti!D121),"") -> 
Q122: =IF(Committenti!D122<>"",CONCATENATE(Committenti!B122," ",Committenti!C122," CF: ",Committenti!D122),"") -> 
Q123: =IF(Committenti!D123<>"",CONCATENATE(Committenti!B123," ",Committenti!C123," CF: ",Committenti!D123),"") -> 
Q124: =IF(Committenti!D124<>"",CONCATENATE(Committenti!B124," ",Committenti!C124," CF: ",Committenti!D124),"") -> 
Q125: =IF(Committenti!D125<>"",CONCATENATE(Committenti!B125," ",Committenti!C125," CF: ",Committenti!D125),"") -> 
Q126: =IF(Committenti!D126<>"",CONCATENATE(Committenti!B126," ",Committenti!C126," CF: ",Committenti!D126),"") -> 
Q127: =IF(Committenti!D127<>"",CONCATENATE(Committenti!B127," ",Committenti!C127," CF: ",Committenti!D127),"") -> 
Q128: =IF(Committenti!D128<>"",CONCATENATE(Committenti!B128," ",Committenti!C128," CF: ",Committenti!D128),"") -> 
Q129: =IF(Committenti!D129<>"",CONCATENATE(Committenti!B129," ",Committenti!C129," CF: ",Committenti!D129),"") -> 
Q130: =IF(Committenti!D130<>"",CONCATENATE(Committenti!B130," ",Committenti!C130," CF: ",Committenti!D130),"") -> 
Q131: =IF(Committenti!D131<>"",CONCATENATE(Committenti!B131," ",Committenti!C131," CF: ",Committenti!D131),"") -> 
Q132: =IF(Committenti!D132<>"",CONCATENATE(Committenti!B132," ",Committenti!C132," CF: ",Committenti!D132),"") -> 
A133: =IF(B133<>"", IF(A132<>"",A132+1,""),"") ->  | Q133: =IF(Committenti!D133<>"",CONCATENATE(Committenti!B133," ",Committenti!C133," CF: ",Committenti!D133),"") -> 
Q134: =IF(Committenti!D134<>"",CONCATENATE(Committenti!B134," ",Committenti!C134," CF: ",Committenti!D134),"") -> 
Q135: =IF(Committenti!D135<>"",CONCATENATE(Committenti!B135," ",Committenti!C135," CF: ",Committenti!D135),"") -> 
Q136: =IF(Committenti!D136<>"",CONCATENATE(Committenti!B136," ",Committenti!C136," CF: ",Committenti!D136),"") -> 
Q137: =IF(Committenti!D137<>"",CONCATENATE(Committenti!B137," ",Committenti!C137," CF: ",Committenti!D137),"") -> 
Q138: =IF(Committenti!D138<>"",CONCATENATE(Committenti!B138," ",Committenti!C138," CF: ",Committenti!D138),"") -> 
Q139: =IF(Committenti!D139<>"",CONCATENATE(Committenti!B139," ",Committenti!C139," CF: ",Committenti!D139),"") -> 
Q140: =IF(Committenti!D140<>"",CONCATENATE(Committenti!B140," ",Committenti!C140," CF: ",Committenti!D140),"") -> 
Q141: =IF(Committenti!D141<>"",CONCATENATE(Committenti!B141," ",Committenti!C141," CF: ",Committenti!D141),"") -> 
Q142: =IF(Committenti!D142<>"",CONCATENATE(Committenti!B142," ",Committenti!C142," CF: ",Committenti!D142),"") -> 
Q143: =IF(Committenti!D143<>"",CONCATENATE(Committenti!B143," ",Committenti!C143," CF: ",Committenti!D143),"") -> 
Q144: =IF(Committenti!D144<>"",CONCATENATE(Committenti!B144," ",Committenti!C144," CF: ",Committenti!D144),"") -> 
Q145: =IF(Committenti!D145<>"",CONCATENATE(Committenti!B145," ",Committenti!C145," CF: ",Committenti!D145),"") -> 
Q146: =IF(Committenti!D146<>"",CONCATENATE(Committenti!B146," ",Committenti!C146," CF: ",Committenti!D146),"") -> 
Q147: =IF(Committenti!D147<>"",CONCATENATE(Committenti!B147," ",Committenti!C147," CF: ",Committenti!D147),"") -> 
Q148: =IF(Committenti!D148<>"",CONCATENATE(Committenti!B148," ",Committenti!C148," CF: ",Committenti!D148),"") -> 
Q149: =IF(Committenti!D149<>"",CONCATENATE(Committenti!B149," ",Committenti!C149," CF: ",Committenti!D149),"") -> 
Q150: =IF(Committenti!D150<>"",CONCATENATE(Committenti!B150," ",Committenti!C150," CF: ",Committenti!D150),"") -> 
Q151: =IF(Committenti!D151<>"",CONCATENATE(Committenti!B151," ",Committenti!C151," CF: ",Committenti!D151),"") -> 
Q152: =IF(Committenti!D152<>"",CONCATENATE(Committenti!B152," ",Committenti!C152," CF: ",Committenti!D152),"") -> 
Q153: =IF(Committenti!D153<>"",CONCATENATE(Committenti!B153," ",Committenti!C153," CF: ",Committenti!D153),"") -> 
Q154: =IF(Committenti!D154<>"",CONCATENATE(Committenti!B154," ",Committenti!C154," CF: ",Committenti!D154),"") -> 
Q155: =IF(Committenti!D155<>"",CONCATENATE(Committenti!B155," ",Committenti!C155," CF: ",Committenti!D155),"") -> 
Q156: =IF(Committenti!D156<>"",CONCATENATE(Committenti!B156," ",Committenti!C156," CF: ",Committenti!D156),"") -> 
Q157: =IF(Committenti!D157<>"",CONCATENATE(Committenti!B157," ",Committenti!C157," CF: ",Committenti!D157),"") -> 
Q158: =IF(Committenti!D158<>"",CONCATENATE(Committenti!B158," ",Committenti!C158," CF: ",Committenti!D158),"") -> 
Q159: =IF(Committenti!D159<>"",CONCATENATE(Committenti!B159," ",Committenti!C159," CF: ",Committenti!D159),"") -> 
Q160: =IF(Committenti!D160<>"",CONCATENATE(Committenti!B160," ",Committenti!C160," CF: ",Committenti!D160),"") -> 
Q161: =IF(Committenti!D161<>"",CONCATENATE(Committenti!B161," ",Committenti!C161," CF: ",Committenti!D161),"") -> 
Q162: =IF(Committenti!D162<>"",CONCATENATE(Committenti!B162," ",Committenti!C162," CF: ",Committenti!D162),"") -> 
Q163: =IF(Committenti!D163<>"",CONCATENATE(Committenti!B163," ",Committenti!C163," CF: ",Committenti!D163),"") -> 
Q164: =IF(Committenti!D164<>"",CONCATENATE(Committenti!B164," ",Committenti!C164," CF: ",Committenti!D164),"") -> 
Q165: =IF(Committenti!D165<>"",CONCATENATE(Committenti!B165," ",Committenti!C165," CF: ",Committenti!D165),"") -> 
Q166: =IF(Committenti!D166<>"",CONCATENATE(Committenti!B166," ",Committenti!C166," CF: ",Committenti!D166),"") -> 
Q167: =IF(Committenti!D167<>"",CONCATENATE(Committenti!B167," ",Committenti!C167," CF: ",Committenti!D167),"") -> 
Q168: =IF(Committenti!D168<>"",CONCATENATE(Committenti!B168," ",Committenti!C168," CF: ",Committenti!D168),"") -> 
Q169: =IF(Committenti!D169<>"",CONCATENATE(Committenti!B169," ",Committenti!C169," CF: ",Committenti!D169),"") -> 
Q170: =IF(Committenti!D170<>"",CONCATENATE(Committenti!B170," ",Committenti!C170," CF: ",Committenti!D170),"") -> 
Q171: =IF(Committenti!D171<>"",CONCATENATE(Committenti!B171," ",Committenti!C171," CF: ",Committenti!D171),"") -> 
Q172: =IF(Committenti!D172<>"",CONCATENATE(Committenti!B172," ",Committenti!C172," CF: ",Committenti!D172),"") -> 
Q173: =IF(Committenti!D173<>"",CONCATENATE(Committenti!B173," ",Committenti!C173," CF: ",Committenti!D173),"") -> 
Q174: =IF(Committenti!D174<>"",CONCATENATE(Committenti!B174," ",Committenti!C174," CF: ",Committenti!D174),"") -> 
Q175: =IF(Committenti!D175<>"",CONCATENATE(Committenti!B175," ",Committenti!C175," CF: ",Committenti!D175),"") -> 
Q176: =IF(Committenti!D176<>"",CONCATENATE(Committenti!B176," ",Committenti!C176," CF: ",Committenti!D176),"") -> 
Q177: =IF(Committenti!D177<>"",CONCATENATE(Committenti!B177," ",Committenti!C177," CF: ",Committenti!D177),"") -> 
Q178: =IF(Committenti!D178<>"",CONCATENATE(Committenti!B178," ",Committenti!C178," CF: ",Committenti!D178),"") -> 
Q179: =IF(Committenti!D179<>"",CONCATENATE(Committenti!B179," ",Committenti!C179," CF: ",Committenti!D179),"") -> 
Q180: =IF(Committenti!D180<>"",CONCATENATE(Committenti!B180," ",Committenti!C180," CF: ",Committenti!D180),"") -> 
Q181: =IF(Committenti!D181<>"",CONCATENATE(Committenti!B181," ",Committenti!C181," CF: ",Committenti!D181),"") -> 
Q182: =IF(Committenti!D182<>"",CONCATENATE(Committenti!B182," ",Committenti!C182," CF: ",Committenti!D182),"") -> 
Q183: =IF(Committenti!D183<>"",CONCATENATE(Committenti!B183," ",Committenti!C183," CF: ",Committenti!D183),"") -> 
Q184: =IF(Committenti!D184<>"",CONCATENATE(Committenti!B184," ",Committenti!C184," CF: ",Committenti!D184),"") -> 
Q185: =IF(Committenti!D185<>"",CONCATENATE(Committenti!B185," ",Committenti!C185," CF: ",Committenti!D185),"") -> 
Q186: =IF(Committenti!D186<>"",CONCATENATE(Committenti!B186," ",Committenti!C186," CF: ",Committenti!D186),"") -> 
Q187: =IF(Committenti!D187<>"",CONCATENATE(Committenti!B187," ",Committenti!C187," CF: ",Committenti!D187),"") -> 
Q188: =IF(Committenti!D188<>"",CONCATENATE(Committenti!B188," ",Committenti!C188," CF: ",Committenti!D188),"") -> 
Q189: =IF(Committenti!D189<>"",CONCATENATE(Committenti!B189," ",Committenti!C189," CF: ",Committenti!D189),"") -> 
Q190: =IF(Committenti!D190<>"",CONCATENATE(Committenti!B190," ",Committenti!C190," CF: ",Committenti!D190),"") -> 
Q191: =IF(Committenti!D191<>"",CONCATENATE(Committenti!B191," ",Committenti!C191," CF: ",Committenti!D191),"") -> 
Q192: =IF(Committenti!D192<>"",CONCATENATE(Committenti!B192," ",Committenti!C192," CF: ",Committenti!D192),"") -> 
Q193: =IF(Committenti!D193<>"",CONCATENATE(Committenti!B193," ",Committenti!C193," CF: ",Committenti!D193),"") -> 
Q194: =IF(Committenti!D194<>"",CONCATENATE(Committenti!B194," ",Committenti!C194," CF: ",Committenti!D194),"") -> 
Q195: =IF(Committenti!D195<>"",CONCATENATE(Committenti!B195," ",Committenti!C195," CF: ",Committenti!D195),"") -> 
Q196: =IF(Committenti!D196<>"",CONCATENATE(Committenti!B196," ",Committenti!C196," CF: ",Committenti!D196),"") -> 
A197: =IF(B197<>"", IF(A196<>"",A196+1,""),"") ->  | Q197: =IF(Committenti!D197<>"",CONCATENATE(Committenti!B197," ",Committenti!C197," CF: ",Committenti!D197),"") -> 
Q198: =IF(Committenti!D198<>"",CONCATENATE(Committenti!B198," ",Committenti!C198," CF: ",Committenti!D198),"") -> 
Q199: =IF(Committenti!D199<>"",CONCATENATE(Committenti!B199," ",Committenti!C199," CF: ",Committenti!D199),"") -> 
Q200: =IF(Committenti!D200<>"",CONCATENATE(Committenti!B200," ",Committenti!C200," CF: ",Committenti!D200),"") -> 
... 817 more rows

Sheet Computo-Massimali
P1: =MATCH("SimMZ",C:C,0) -> 78
Q2: Condominio
C3: Verifica Massimali Superbonus | F3: =CONCATENATE(IF('Dati Gen'!E9<>"",'Dati Gen'!E9,""),IF('Dati Gen'!E8<>"",CONCATENATE(" - ",'Dati Gen'!E8),"")) ->  | M3: ='Dati Gen'!K2 -> Verifica Massimali | Q3: 2
C4: =IF(TipoEdif=1,'Dati Gen'!Q5,'Dati Gen'!Q6) -> Edificio Unifamiliare | D4: =IF('Dati Gen'!G5>1,CONCATENATE('Dati Gen'!G5," U.Imm"),"") ->  | F4: =IF(TipoEdif=2,IF('Dati Gen'!K5<>"",'Dati Gen'!K5,""),IF(Committenti!B3<>"",CONCATENATE(Committenti!B3," ",Committenti!C3),"")) ->  | M4: ='Dati Gen'!K4 -> ©2021-2022 SIM srl - www.madosoft.it
C6: =IF(ABS(F100-'Dati Gen'!G20)>0.01,"Importo Lavori al Netto della Sicurezza =",IF(ABS(G100-'Dati Gen'!G19)>0.01,"Importo Sicurezza da Progetto =",IF(ABS(H100-'Dati Gen'!G18)>0.01,"Importo Lavori da Progetto =",IF(ABS('Dati Gen'!M21-K100)>0.01,"Importo Spese Tecniche da Progetto =",IF(ABS(L100-'Dati Gen'!M22)<=0.01,"","Importo Complessivo Progetto ="))))) -> Importo Lavori al Netto della Sicurezza = | F6: =IF(ABS(F100-'Dati Gen'!G20)>0.01,'Dati Gen'!G20,IF(ABS(G100-'Dati Gen'!G19)>0.01,'Dati Gen'!G19,IF(ABS(H100-'Dati Gen'!G18)>0.01,'Dati Gen'!G18,IF(ABS('Dati Gen'!M21-K100)>0.01,'Dati Gen'!M21,IF(ABS(L100-'Dati Gen'!M22)<=0.01,"",'Dati Gen'!M22))))) -> 0 | G6: =IF(C6<>"","DIVERSO da","") -> DIVERSO da | I6: =IF(ABS(F100-'Dati Gen'!G20)>0.01,"Sommatoria Importo Lavori =",IF(ABS(G100-'Dati Gen'!G19)>0.01,"Sommatoria Incidenza Sicurezza =",IF(ABS(H100-'Dati Gen'!G18)>0.01,"Sommatoria Imponibili =",IF(ABS('Dati Gen'!M21-K100)>0.01,"Sommatoria Spese Tecniche =",IF(ABS(L100-'Dati Gen'!M22)<=0.01,"","Totale Interventi ="))))) -> Sommatoria Importo Lavori = | K6: =IF(ABS(F100-'Dati Gen'!G20)>0.01,F100,IF(ABS(G100-'Dati Gen'!G19)>0.01,G100,IF(ABS(H100-'Dati Gen'!G18)>0.01,H100,IF(ABS('Dati Gen'!M21-K100)>0.01,K100,IF(ABS(L100-'Dati Gen'!M22)<=0.01,"",L100))))) -> 100 | L6: =IF(C6<>"","Completare Tabella Interventi","") -> Completare Tabella Interventi | AD6: =IF(COUNTIF(AH9:AH15,"KO")>0,"ATTENZIONE! Massimale Spesa MITE non Asseverabile","") -> 
C7: INTERVENTI TRAINANTI | N7: .. | Q7: =CONCATENATE("Massimali di Spesa ",C7) -> Massimali di Spesa INTERVENTI TRAINANTI | AD7: Spesa Specifica MITE | AF7: =C7 -> INTERVENTI TRAINANTI
C8: Interventi | F8: Importo Lavori | G8: Incidenza Sicurezza | H8: Imponibile | I8: Iva | J8: Importo c.iva | K8: Spese tecniche | L8: Totale | M8: Credito Spettante 110% Spesa Ammessa | Q8: Interventi | R8: Massimale spesa | S8: Verifica Max | U8: Spesa Ammessa | W8: Quota Eccedente Massimale Spesa | Y8: Credito Spettante 110% Spesa Ammessa Quota Impresa | Quota Tecnici | AD8: Sup. Interv. / Unita Misura | AE8: Incidenza Materiale % | AF8: Spesa Specifica | AG8: Spesa Specifica Massima ammissibile | AH8: Verifica
C9: PV) Isolamento pareti perimetrali | E9: Esterno | F9: 100 | G9: 10 | H9: =SUM(F9:G9) -> 110 | I9: =F9*'Dati Gen'!$J$20+G9*'Dati Gen'!$J$19 -> 11 | J9: =H9+I9 -> 121 | K9: 0 | L9: =SUM(J9:K9) -> 121 | M9: =IF(L9<=R9,L9*1.1,R9*1.1) -> 133.1 | Q9: =C9 -> PV) Isolamento pareti perimetrali | R9: =IF(TipoEdif=1,50000,IF(N_Uimm>8,40000*8+30000*(N_Uimm-8),40000*N_Uimm)) -> 50000 | S9: =IF(L9>M9,"KO",IF(L9>R9,"ok<","ok")) -> ok | U9: =IF(L9<R9,L9,R9) -> 121 | W9: =IF(L9>R9,L9-R9,0) -> 0 | Y9: =IF(M9<>0,J9*M9/L9,0) -> 133.1 | AA9: =IF(M9<>0,K9*M9/L9,0) -> 0 | AD9: 1 | AE9: 0.5 | AF9: =IF(ISNUMBER(AD9)=TRUE,IF(AD9<>0,F9*AE9/AD9,0),0) -> 50 | AG9: =IF(ZonaClimatica="A",IF(E9="Parete Ventilata",240,IF(E9="Interno",96,180)),IF(ZonaClimatica="B",IF(E9="Parete Ventilata",240,IF(E9="Interno",96,180)),IF(ZonaClimatica="C",IF(E9="Parete Ventilata",240,IF(E9="Interno",96,180)),IF(E9="Parete Ventilata",260,IF(E9="Interno",104,195))))) -> 195 | AH9: =IF(AF9<>0,IF(AF9>AG9,"KO","ok"),"ok") -> ok
C10: PO) Isolamento coperture | E10: Esterno | F10: 0 | G10: 0 | H10: =SUM(F10:G10) -> 0 | I10: =F10*'Dati Gen'!$J$20+G10*'Dati Gen'!$J$19 -> 0 | J10: =H10+I10 -> 0 | K10: 0 | L10: =SUM(J10:K10) -> 0 | M10: 0 | Q10: PO) Isolamento coperture | R10: =IF(TipoEdif=1,50000,IF(N_Uimm>8,40000*8+30000*(N_Uimm-8),40000*N_Uimm)) -> 50000 | S10: ok | U10: =IF(L10<R10,L10,R10) -> 0 | W10: =IF(L10>R10,L10-R10,0) -> 0 | Y10: 0 | AA10: 0 | AF10: =IF(ISNUMBER(AD10)=TRUE,IF(AD10<>0,F10*AE10/AD10,0),0) -> 0 | AG10: =IF(E10="Copertura Ventilata",300,IF(E10="Interno",120,276)) -> 276 | AH10: =IF(AF10<>0,IF(AF10>AG10,"KO","ok"),"ok") -> ok
C11: POND) Isol. coperture non disperdenti | E11: Esterno | F11: 0 | G11: =IF(ImpLav<>0,F11*ImpSicLav/ImpLav,0) -> 0 | H11: =SUM(F11:G11) -> 0 | I11: =F11*'Dati Gen'!$J$20+G11*'Dati Gen'!$J$19 -> 0 | J11: =H11+I11 -> 0 | K11: =IF(ImpLav<>0,F11*ImpTecLav/ImpLav,0) -> 0 | L11: =SUM(J11:K11) -> 0 | M11: =IF(L11<=R11,L11*1.1,R11*1.1) -> 0 | Q11: POND) Isol. coperture non disperdenti | R11: =IF(TipoEdif=1,50000,IF(N_Uimm>8,40000*8+30000*(N_Uimm-8),40000*N_Uimm)) -> 50000 | S11: ok | U11: 0 | W11: 0 | Y11: 0 | AA11: 0 | AF11: =IF(ISNUMBER(AD11)=TRUE,IF(AD11<>0,F11*AE11/AD11,0),0) -> 0 | AG11: =IF(E11="Copertura Ventilata",300,IF(E11="Interno",120,276)) -> 276 | AH11: =IF(AF11<>0,IF(AF11>AG11,"KO","ok"),"ok") -> ok
C12: PS) Isolamento Pavimenti | E12: Interno/terreno | F12: 0 | G12: 0 | H12: =SUM(F12:G12) -> 0 | I12: =F12*'Dati Gen'!$J$20+G12*'Dati Gen'!$J$19 -> 0 | J12: =H12+I12 -> 0 | K12: 0 | L12: =SUM(J12:K12) -> 0 | M12: 0 | Q12: PS) Isolamento Pavimenti | R12: =IF(TipoEdif=1,50000,IF(N_Uimm>8,40000*8+30000*(N_Uimm-8),40000*N_Uimm)) -> 50000 | S12: ok | U12: 0 | W12: 0 | Y12: 0 | AA12: 0 | AF12: =IF(ISNUMBER(AD12)=TRUE,IF(AD12<>0,F12*AE12/AD12,0),0) -> 0 | AG12: =IF(E12="Interno/terreno",180,144) -> 180 | AH12: =IF(AF12<>0,IF(AF12>AG12,"KO","ok"),"ok") -> ok
C13: Totali Isolamento PV) PO) POND) PS) | F13: =SUM(F9:F12) -> 100 | G13: =SUM(G9:G12) -> 10 | H13: 110 | I13: 11 | J13: 121 | K13: 0 | L13: 121 | M13: 133.1 | Q13: Totali Isolamento PV) PO) POND) PS) | R13: =IF(TipoEdif=1,50000,IF(N_Uimm>8,40000*8+30000*(N_Uimm-8),40000*N_Uimm)) -> 50000 | S13: ok | U13: 121 | W13: 0 | Y13: 133.1 | AA13: 0
C14: Impianti climatizzazione e ACS | D14: CC)Caldaie a Condensazione | F14: 0 | G14: 0 | H14: =SUM(F14:G14) -> 0 | I14: =F14*'Dati Gen'!$J$20+G14*'Dati Gen'!$J$19 -> 0 | J14: =H14+I14 -> 0 | K14: 0 | L14: =SUM(J14:K14) -> 0 | M14: 0 | Q14: =CONCATENATE(C14," ",D14) -> Impianti climatizzazione e ACS CC)Caldaie a Condensazione | R14: =IF(TipoEdif=1,30000,IF(N_Uimm>8,20000*8+15000*(N_Uimm-8),20000*N_Uimm)) -> 30000 | S14: ok | U14: 0 | W14: 0 | Y14: 0 | AA14: 0 | AF14: =IF(ISNUMBER(AD14)=TRUE,IF(AD14<>0,F14*AE14/AD14,0),0) -> 0 | AG14: =IF(LEFT(D14,3)="CC)",IF(AD14<=35,240,216),IF(LEFT(D14,3)="GA)",IF(AD14<=35,240,216),IF(D14="PC)Aria/Aria",720,IF(D14="PC)Altro",1560,IF(D14="PC)Geotermiche",2280,IF(LEFT(D14,3)="SI)",1860,0)))))) -> 240 | AH14: =IF(AF14<>0,IF(AF14>AG14,"KO","ok"),"ok") -> ok
C15: SismaBonus Zona 1,2 o 3 | F15: 0 | G15: =IF(ImpLav<>0,F15*ImpSicLav/ImpLav,0) -> 0 | H15: =SUM(F15:G15) -> 0 | I15: =F15*'Dati Gen'!$J$20+G15*'Dati Gen'!$J$19 -> 0 | J15: =H15+I15 -> 0 | K15: 0 | L15: =SUM(J15:K15) -> 0 | M15: 0 | Q15: SismaBonus Zona 1,2 o 3 | R15: =105600*N_Uimm/1.1 -> 96000 | S15: ok | U15: 0 | W15: 0 | Y15: 0 | AA15: 0 | AF15: =IF(ISNUMBER(AD15)=TRUE,IF(AD15<>0,F15*AE15/AD15,0),0) -> 0 | AG15: 0 | AH15: =IF(AF15<>0,IF(AF15>AG15,"KO","ok"),"ok") -> ok
C16: Totale interventi Trainanti : | F16: =SUM(F13:F15) -> 100 | G16: 10 | H16: 110 | I16: 11 | J16: 121 | K16: 0 | L16: 121 | M16: 133.1 | Q16: Totale interventi Trainanti : | U16: =SUM(U13:V15) -> 121 | W16: =SUM(W13:X15) -> 0 | Y16: =SUM(Y13:Z15) -> 133.1 | AA16: =SUM(AA13:AB15) -> 0
AD17: =IF(COUNTIF(AH20:AH26,"KO")>0,"ATTENZIONE! Massimale Spesa MITE non Asseverabile","") -> 
C18: INTERVENTI TRAINATI PARTI COMUNI CONDOMINIALI | N18: .. | Q18: =CONCATENATE("Massimali di Spesa ",C18) -> Massimali di Spesa INTERVENTI TRAINATI PARTI COMUNI CONDOMINIALI | AD18: Spesa Specifica MITE | AF18: =MID(C18,1,32) -> INTERVENTI TRAINATI PARTI COMUNI
C19: Interventi | F19: Importo Lavori | G19: Incidenza Sicurezza | H19: Imponibile | I19: Iva | J19: Importo c.iva | K19: Spese tecniche | L19: Totale | M19: Credito Spettante 110% Spesa Ammessa | Q19: Interventi | R19: Massimale spesa | S19: Verifica Max | U19: Spesa Ammessa | W19: Quota Eccedente Massimale Spesa | Y19: Credito Spettante 110% Spesa Ammessa Quota Impresa | Quota Tecnici | AD19: Sup. Interv. / Unita Misura | AE19: Incidenza Materiale % | AF19: Spesa Specifica | AG19: Spesa Specifica Massima ammissibile | AH19: Verifica
C20: PV) Isolamento pareti perimetrali | E20: Esterno | F20: 0 | G20: 0 | H20: =SUM(F20:G20) -> 0 | I20: =F20*'Dati Gen'!$J$20+G20*'Dati Gen'!$J$19 -> 0 | J20: =H20+I20 -> 0 | K20: 0 | L20: =SUM(J20:K20) -> 0 | M20: =IF(L20<=R20,L20*1.1,R20*1.1) -> 0 | Q20: =C20 -> PV) Isolamento pareti perimetrali | R20: =IF(TipoEdif=1,50000,IF(N_Uimm>8,40000*8+30000*(N_Uimm-8),40000*N_Uimm)) -> 50000 | S20: =IF(L20>M20,"KO",IF(L20>R20,"ok<","ok")) -> ok | U20: =IF(L20<R20,L20,R20) -> 0 | W20: =IF(L20>R20,L20-R20,0) -> 0 | Y20: =IF(M20<>0,J20*M20/L20,0) -> 0 | AA20: =IF(M20<>0,K20*M20/L20,0) -> 0 | AF20: =IF(ISNUMBER(AD20)=TRUE,IF(AD20<>0,F20*AE20/AD20,0),0) -> 0 | AG20: =IF(ZonaClimatica="A",IF(E20="Parete Ventilata",240,IF(E20="Interno",96,180)),IF(ZonaClimatica="B",IF(E20="Parete Ventilata",240,IF(E20="Interno",96,180)),IF(ZonaClimatica="C",IF(E20="Parete Ventilata",240,IF(E20="Interno",96,180)),IF(E20="Parete Ventilata",260,IF(E20="Interno",104,195))))) -> 195 | AH20: =IF(AF20<>0,IF(AF20>AG20,"KO","ok"),"ok") -> ok
C21: PO) Isolamento coperture | E21: Esterno | F21: 0 | G21: 0 | H21: =SUM(F21:G21) -> 0 | I21: =F21*'Dati Gen'!$J$20+G21*'Dati Gen'!$J$19 -> 0 | J21: =H21+I21 -> 0 | K21: 0 | L21: =SUM(J21:K21) -> 0 | M21: =IF(L21<=R21,L21*1.1,R21*1.1) -> 0 | Q21: PO) Isolamento coperture | R21: =IF(TipoEdif=1,50000,IF(N_Uimm>8,40000*8+30000*(N_Uimm-8),40000*N_Uimm)) -> 50000 | S21: ok | U21: =IF(L21<R21,L21,R21) -> 0 | W21: 0 | Y21: 0 | AA21: 0 | AF21: =IF(ISNUMBER(AD21)=TRUE,IF(AD21<>0,F21*AE21/AD21,0),0) -> 0 | AG21: =IF(E21="Copertura Ventilata",300,IF(E21="Interno",120,276)) -> 276 | AH21: =IF(AF21<>0,IF(AF21>AG21,"KO","ok"),"ok") -> ok
C22: PS) Isolamento Pavimenti | E22: Interno/terreno | F22: 0 | G22: 0 | H22: =SUM(F22:G22) -> 0 | I22: =F22*'Dati Gen'!$J$20+G22*'Dati Gen'!$J$19 -> 0 | J22: =H22+I22 -> 0 | K22: 0 | L22: =SUM(J22:K22) -> 0 | M22: =IF(L22<=R22,L22*1.1,R22*1.1) -> 0 | Q22: =C22 -> PS) Isolamento Pavimenti | R22: =IF(TipoEdif=1,50000,IF(N_Uimm>8,40000*8+30000*(N_Uimm-8),40000*N_Uimm)) -> 50000 | S22: ok | U22: 0 | W22: 0 | Y22: 0 | AA22: 0 | AF22: =IF(ISNUMBER(AD22)=TRUE,IF(AD22<>0,F22*AE22/AD22,0),0) -> 0 | AG22: =IF(E22="Interno/terreno",180,144) -> 180 | AH22: =IF(AF22<>0,IF(AF22>AG22,"KO","ok"),"ok") -> ok
C23: IN) Serramenti con chiusure oscuranti | E23: =IF(ZonaClimatica="A","Zone A, B e C", IF(ZonaClimatica="B","Zone A, B e C",IF(ZonaClimatica="C","Zone A, B e C","Zone D, E ed F"))) -> Zone D, E ed F | F23: 0 | G23: 0 | H23: =SUM(F23:G23) -> 0 | I23: =F23*'Dati Gen'!$J$20+G23*'Dati Gen'!$J$19 -> 0 | J23: =H23+I23 -> 0 | K23: 0 | L23: =SUM(J23:K23) -> 0 | M23: =IF(L23<=R23,L23*1.1,R23*1.1) -> 0 | Q23: =C23 -> IN) Serramenti con chiusure oscuranti | R23: =INT(60000/1.1)*N_Uimm -> 54545 | S23: ok | U23: 0 | W23: 0 | Y23: 0 | AA23: 0 | AF23: =IF(ISNUMBER(AD23)=TRUE,IF(AD23<>0,F23*AE23/AD23,0),0) -> 0 | AG23: =IF(E23="Zone A, B e C",IF(C23="IN) Serramenti",660,780),IF(C23="IN) Serramenti",780,900)) -> 900 | AH23: =IF(AF23<>0,IF(AF23>AG23,"KO","ok"),"ok") -> ok
C24: Totali Isolamento PV) PO) PS) e IN) | F24: =SUM(F20:F23) -> 0 | G24: 0 | H24: 0 | I24: 0 | J24: 0 | K24: 0 | L24: 0 | M24: 0 | Q24: Totali Isolamento PV) PO) PS) e IN) | R24: =INT(60000/1.1)*N_Uimm -> 54545 | S24: ok | U24: 0 | W24: 0 | Y24: 0 | AA24: 0
C25: SS) Schermature solari e chiusure oscuranti | F25: 0 | G25: 0 | H25: =SUM(F25:G25) -> 0 | I25: =F25*'Dati Gen'!$J$20+G25*'Dati Gen'!$J$19 -> 0 | J25: =H25+I25 -> 0 | K25: 0 | L25: =SUM(J25:K25) -> 0 | M25: 0 | Q25: SS) Schermature solari e chiusure oscuranti | R25: =INT(60000/1.1)*N_Uimm -> 54545 | S25: ok | U25: 0 | W25: 0 | Y25: 0 | AA25: 0 | AF25: =IF(ISNUMBER(AD25)=TRUE,IF(AD25<>0,F25*AE25/AD25,0),0) -> 0 | AG25: 276 | AH25: =IF(AF25<>0,IF(AF25>AG25,"KO","ok"),"ok") -> ok
C26: Impianti climatizzazione con | D26: SI)Sistemi Ibridi | F26: 0 | G26: 0 | H26: =SUM(F26:G26) -> 0 | I26: =F26*'Dati Gen'!$J$20+G26*'Dati Gen'!$J$19 -> 0 | J26: =H26+I26 -> 0 | K26: 0 | L26: =SUM(J26:K26) -> 0 | M26: 0 | Q26: =CONCATENATE(C26," ",D26) -> Impianti climatizzazione con SI)Sistemi Ibridi | R26: =INT(30000/1.1)*N_Uimm -> 27272 | S26: ok | U26: 0 | W26: 0 | Y26: 0 | AA26: 0 | AF26: =IF(ISNUMBER(AD26)=TRUE,IF(AD26<>0,F26*AE26/AD26,0),0) -> 0 | AG26: =IF(LEFT(D26,3)="CC)",IF(AD26<=35,240,216),IF(D26="PC)Aria/Aria",720,IF(D26="PC)Altro",1560,IF(D26="PC)Geotermiche",2280,IF(LEFT(D26,4)="PCA)",1560,IF(LEFT(D26,3)="SI)",1860,0)))))) -> 1860 | AH26: =IF(AF26<>0,IF(AF26>AG26,"KO","ok"),"ok") -> ok
C27: GA) Generatori aria calda Condensazione | F27: 0 | G27: 0 | H27: =SUM(F27:G27) -> 0 | I27: =F27*'Dati Gen'!$J$20+G27*'Dati Gen'!$J$19 -> 0 | J27: =H27+I27 -> 0 | K27: 0 | L27: =SUM(J27:K27) -> 0 | M27: 0 | Q27: GA) Generatori aria calda Condensazione | R27: =INT(30000/1.1)*N_Uimm -> 27272 | S27: ok | U27: 0 | W27: 0 | Y27: 0 | AA27: 0 | AF27: =IF(ISNUMBER(AD27)=TRUE,IF(AD27<>0,F27*AE27/AD27,0),0) -> 0 | AG27: =IF(AD27<=35,240,216) -> 240 | AH27: =IF(AF27<>0,IF(AF27>AG27,"KO","ok"),"ok") -> ok
C28: IB) Impianti Biomassa | F28: 0 | G28: 0 | H28: =SUM(F28:G28) -> 0 | I28: =F28*'Dati Gen'!$J$20+G28*'Dati Gen'!$J$19 -> 0 | J28: =H28+I28 -> 0 | K28: 0 | L28: =SUM(J28:K28) -> 0 | M28: =IF(L28<=R28,L28*1.1,R28*1.1) -> 0 | Q28: IB) Impianti Biomassa | R28: =INT(30000/1.1)*N_Uimm -> 27272 | S28: ok | U28: 0 | W28: 0 | Y28: 0 | AA28: 0 | AF28: =IF(ISNUMBER(AD28)=TRUE,IF(AD28<>0,F28*AE28/AD28,0),0) -> 0 | AG28: =IF(AD27<=35,420,540) -> 420 | AH28: =IF(AF28<>0,IF(AF28>AG28,"KO","ok"),"ok") -> ok
C29: SA) Scaldacqua a pompa di calore | F29: 0 | G29: 0 | H29: =SUM(F29:G29) -> 0 | I29: =F29*'Dati Gen'!$J$20+G29*'Dati Gen'!$J$19 -> 0 | J29: =H29+I29 -> 0 | K29: 0 | L29: =SUM(J29:K29) -> 0 | M29: 0 | Q29: SA) Scaldacqua a pompa di calore | R29: =INT(30000/1.1)*N_Uimm -> 27272 | S29: ok | U29: 0 | W29: 0 | Y29: 0 | AA29: 0 | AF29: =IF(ISNUMBER(AD29)=TRUE,IF(AD29<>0,F29*AE29/AD29,0),0) -> 0 | AG29: =IF(AD29<=150,1200,1500) -> 1200 | AH29: =IF(AF29<>0,IF(AF29>AG29,"KO","ok"),"ok") -> ok
C30: Totali GA) IB) SA) | F30: =SUM(F27:F29) -> 0 | G30: =SUM(G27:G29) -> 0 | H30: =SUM(H27:H29) -> 0 | I30: 0 | J30: 0 | K30: 0 | L30: 0 | M30: 0 | Q30: Totali GA) IB) SA) | R30: =INT(30000/1.1)*N_Uimm -> 27272 | S30: ok | U30: =IF(L30<R30,L30,R30) -> 0 | W30: =IF(L30>R30,L30-R30,0) -> 0 | Y30: =IF(M30<>0,J30*M30/L30,0) -> 0 | AA30: =IF(M30<>0,K30*M30/L30,0) -> 0
C31: CO) Sistemi di Microgenerazione | E31: Celle a combustibile | F31: 0 | G31: 0 | H31: =SUM(F31:G31) -> 0 | I31: =F31*'Dati Gen'!$J$20+G31*'Dati Gen'!$J$19 -> 0 | J31: =H31+I31 -> 0 | K31: 0 | L31: =SUM(J31:K31) -> 0 | M31: =IF(L31<=R31,L31*1.1,R31*1.1) -> 0 | Q31: =C31 -> CO) Sistemi di Microgenerazione | R31: =INT(100000/1.1)*N_Uimm -> 90909 | S31: ok | U31: 0 | W31: 0 | Y31: 0 | AA31: 0 | AF31: =IF(ISNUMBER(AD31)=TRUE,IF(AD31<>0,F31*AE31/AD31,0),0) -> 0 | AG31: =IF(E31="Celle a combustibile",30000,3720) -> 30000 | AH31: =IF(AF31<>0,IF(AF31>AG31,"KO","ok"),"ok") -> ok
C32: ST) Collettori Solari | E32: Piani Vetrati | F32: 0 | G32: 0 | H32: 0 | I32: =F32*'Dati Gen'!$J$20+G32*'Dati Gen'!$J$19 -> 0 | J32: 0 | K32: 0 | L32: 0 | M32: 0 | Q32: ST) Collettori Solari | R32: =INT(60000/1.1)*N_Uimm -> 54545 | S32: ok | U32: 0 | W32: 0 | Y32: 0 | AA32: 0 | AF32: 0 | AG32: =IF(E32="Scoperti",900,IF(E32="Piani vetrati",1200,1500)) -> 1200 | AH32: =IF(AF32<>0,IF(AF32>AG32,"KO","ok"),"ok") -> ok
C33: FV) Solare Fotovoltaico [ kWp ] | E33: 6 | F33: 0 | G33: 0 | H33: 0 | I33: =F33*'Dati Gen'!$J$20+G33*'Dati Gen'!$J$19 -> 0 | J33: 0 | K33: 0 | L33: 0 | M33: 0 | Q33: =C33 -> FV) Solare Fotovoltaico [ kWp ] | R33: =IF(ISNUMBER(FIND("ristr",C33))=FALSE,IF(E33*2400<48000*N_Uimm,E33*2400,48000*N_Uimm),IF(E33*1600<48000*N_Uimm,E33*1600,48000*N_Uimm)) -> 14400 | S33: ok | U33: 0 | W33: 0 | Y33: 0 | AA33: 0 | AF33: 0 | AG33: 2400 | AH33: =IF(AF33<>0,IF(AF33>AG33,"KO","ok"),"ok") -> ok
C34: AC) Sistema di Accumulo [ kWh ] | E34: 10 | F34: 0 | G34: 0 | H34: 0 | I34: =F34*'Dati Gen'!$J$20+G34*'Dati Gen'!$J$19 -> 0 | J34: 0 | K34: 0 | L34: 0 | M34: 0 | Q34: =C34 -> AC) Sistema di Accumulo [ kWh ] | R34: =IF(E34*1000<48000*N_Uimm,E34*1000,48000*N_Uimm) -> 10000 | S34: ok | U34: 0 | W34: 0 | Y34: 0 | AA34: 0 | AF34: 0 | AG34: 1000 | AH34: ok
C35: CR) Colonnine di Ricarica [ N. ] | E35: 1 | F35: 0 | G35: 0 | H35: 0 | I35: =F35*'Dati Gen'!$J$20+G35*'Dati Gen'!$J$19 -> 0 | J35: 0 | K35: 0 | L35: 0 | M35: 0 | Q35: =C35 -> CR) Colonnine di Ricarica [ N. ] | R35: =IF(E35>8,1500*8+1200*(E35-8),1500*E35) -> 1500 | S35: ok | U35: 0 | W35: 0 | Y35: 0 | AA35: 0 | AF35: 0 | AG35: 1500 | AH35: ok
C36: EBA) Eliminazione Barriere architettoniche | F36: 0 | G36: 0 | H36: 0 | I36: =F36*'Dati Gen'!$J$20+G36*'Dati Gen'!$J$19 -> 0 | J36: 0 | K36: 0 | L36: 0 | M36: 0 | Q36: EBA) Eliminazione Barriere architettoniche | R36: =IF(F36>0,IF(96000*N_Uimm > F15,96000*N_Uimm - F15,0),96000*N_Uimm ) -> 96000 | S36: ok | U36: 0 | W36: 0 | Y36: 0 | AA36: 0 | AF36: 0 | AG36: 0 | AH36: ok
C37: Totale Interventi Trainati Parti Comuni: | F37: =SUM(F24:F26)+SUM(F30:F36) -> 0 | G37: =SUM(G24:G26)+SUM(G30:G36) -> 0 | H37: 0 | I37: 0 | J37: 0 | K37: 0 | L37: 0 | M37: 0 | Q37: =C37 -> Totale Interventi Trainati Parti Comuni: | U37: =U24+U25+U26+SUM(U30:V36) -> 0 | W37: =W24+W25+W26+SUM(W30:X36) -> 0 | Y37: =Y24+Y25+Y26+SUM(Y30:Z36) -> 0 | AA37: =AA24+AA25+AA26+SUM(AA30:AB36) -> 0
AD39: =IF(COUNTIF(AH42:AH48,"KO")>0,"ATTENZIONE! Massimale Spesa MITE non Asseverabile","") -> 
C40: INTERVENTI TRAINATI | N40: .. | Q40: =CONCATENATE("Massimali di Spesa ",C40) -> Massimali di Spesa INTERVENTI TRAINATI | AD40: Spesa Specifica MITE | AF40: =C40 -> INTERVENTI TRAINATI
C41: Interventi | F41: Importo Lavori | G41: Incidenza Sicurezza | H41: Imponibile | I41: Iva | J41: Importo c.iva | K41: Spese tecniche | L41: Totale | M41: Credito Spettante 110% Spesa Ammessa | Q41: Interventi | R41: Massimale spesa | S41: Verifica Max | U41: Spesa Ammessa | W41: Quota Eccedente Massimale Spesa | Y41: Credito Spettante 110% Spesa Ammessa Quota Impresa | Quota Tecnici | AD41: Sup. Interv. / Unita Misura | AE41: Incidenza Materiale % | AF41: Spesa Specifica | AG41: Spesa Specifica Massima ammissibile | AH41: Verifica
C42: PV) Isolamento pareti perimetrali | E42: Esterno | F42: 0 | G42: 0 | H42: =SUM(F42:G42) -> 0 | I42: =F42*'Dati Gen'!$J$20+G42*'Dati Gen'!$J$19 -> 0 | J42: =H42+I42 -> 0 | K42: 0 | L42: =SUM(J42:K42) -> 0 | M42: =IF(L42<=R42,L42*1.1,R42*1.1) -> 0 | Q42: =C42 -> PV) Isolamento pareti perimetrali | R42: =INT(60000/1.1) -> 54545 | S42: =IF(L42>M42,"KO",IF(L42>R42,"ok<","ok")) -> ok | U42: =IF(L42<R42,L42,R42) -> 0 | W42: =IF(L42>R42,L42-R42,0) -> 0 | Y42: =IF(M42<>0,J42*M42/L42,0) -> 0 | AA42: =IF(M42<>0,K42*M42/L42,0) -> 0 | AF42: =IF(ISNUMBER(AD42)=TRUE,IF(AD42<>0,F42*AE42/AD42,0),0) -> 0 | AG42: =IF(ZonaClimatica="A",IF(E42="Parete Ventilata",240,IF(E42="Interno",96,180)),IF(ZonaClimatica="B",IF(E42="Parete Ventilata",240,IF(E42="Interno",96,180)),IF(ZonaClimatica="C",IF(E42="Parete Ventilata",240,IF(E42="Interno",96,180)),IF(E42="Parete Ventilata",260,IF(E42="Interno",104,195))))) -> 195 | AH42: =IF(AF42<>0,IF(AF42>AG42,"KO","ok"),"ok") -> ok
C43: PO) Isolamento coperture | E43: Esterno | F43: 0 | G43: 0 | H43: =SUM(F43:G43) -> 0 | I43: =F43*'Dati Gen'!$J$20+G43*'Dati Gen'!$J$19 -> 0 | J43: =H43+I43 -> 0 | K43: 0 | L43: =SUM(J43:K43) -> 0 | M43: =IF(L43<=R43,L43*1.1,R43*1.1) -> 0 | Q43: PO) Isolamento coperture | R43: 54545 | S43: ok | U43: 0 | W43: 0 | Y43: 0 | AA43: 0 | AF43: =IF(ISNUMBER(AD43)=TRUE,IF(AD43<>0,F43*AE43/AD43,0),0) -> 0 | AG43: =IF(E43="Copertura Ventilata",300,IF(E43="Interno",120,276)) -> 276 | AH43: =IF(AF43<>0,IF(AF43>AG43,"KO","ok"),"ok") -> ok
C44: PS) Isolamento Pavimenti | E44: Esterno | F44: 0 | G44: 0 | H44: =SUM(F44:G44) -> 0 | I44: =F44*'Dati Gen'!$J$20+G44*'Dati Gen'!$J$19 -> 0 | J44: =H44+I44 -> 0 | K44: 0 | L44: =SUM(J44:K44) -> 0 | M44: =IF(L44<=R44,L44*1.1,R44*1.1) -> 0 | Q44: PS) Isolamento Pavimenti | R44: 54545 | S44: ok | U44: 0 | W44: 0 | Y44: 0 | AA44: 0 | AF44: =IF(ISNUMBER(AD44)=TRUE,IF(AD44<>0,F44*AE44/AD44,0),0) -> 0 | AG44: =IF(E44="Interno/terreno",180,144) -> 144 | AH44: =IF(AF44<>0,IF(AF44>AG44,"KO","ok"),"ok") -> ok
C45: IN) Serramenti con chiusure oscuranti | E45: =IF(ZonaClimatica="A","Zone A, B e C", IF(ZonaClimatica="B","Zone A, B e C",IF(ZonaClimatica="C","Zone A, B e C","Zone D, E ed F"))) -> Zone D, E ed F | F45: 0 | G45: 0 | H45: =SUM(F45:G45) -> 0 | I45: =F45*'Dati Gen'!$J$20+G45*'Dati Gen'!$J$19 -> 0 | J45: =H45+I45 -> 0 | K45: 0 | L45: =SUM(J45:K45) -> 0 | M45: =IF(L45<=R45,L45*1.1,R45*1.1) -> 0 | Q45: IN) Serramenti con chiusure oscuranti | R45: 54545 | S45: ok | U45: 0 | W45: 0 | Y45: 0 | AA45: 0 | AF45: =IF(ISNUMBER(AD45)=TRUE,IF(AD45<>0,F45*AE45/AD45,0),0) -> 0 | AG45: =IF(E45="Zone A, B e C",IF(C45="IN) Serramenti",660,780),IF(C45="IN) Serramenti",780,900)) -> 900 | AH45: =IF(AF45<>0,IF(AF45>AG45,"KO","ok"),"ok") -> ok
C46: Totali Isolamento PV) PO) PS) e IN | F46: =SUM(F42:F45) -> 0 | G46: 0 | H46: 0 | I46: 0 | J46: 0 | K46: 0 | L46: 0 | M46: 0 | Q46: Totali Isolamento PV) PO) PS) e IN | R46: 54545 | S46: ok | U46: 0 | W46: 0 | Y46: 0 | AA46: 0
C47: SS) Schermature solari e chiusure oscuranti | F47: 0 | G47: 0 | H47: =SUM(F47:G47) -> 0 | I47: =F47*'Dati Gen'!$J$20+G47*'Dati Gen'!$J$19 -> 0 | J47: =H47+I47 -> 0 | K47: 0 | L47: =SUM(J47:K47) -> 0 | M47: =IF(L47<=R47,L47*1.1,R47*1.1) -> 0 | Q47: SS) Schermature solari e chiusure oscuranti | R47: 54545 | S47: ok | U47: 0 | W47: 0 | Y47: 0 | AA47: 0 | AF47: =IF(ISNUMBER(AD47)=TRUE,IF(AD47<>0,F47*AE47/AD47,0),0) -> 0 | AG47: 276 | AH47: =IF(AF47<>0,IF(AF47>AG47,"KO","ok"),"ok") -> ok
C48: Impianti climatizzazione con | D48: SI)Sistemi Ibridi | F48: 0 | G48: 0 | H48: =SUM(F48:G48) -> 0 | I48: =F48*'Dati Gen'!$J$20+G48*'Dati Gen'!$J$19 -> 0 | J48: =H48+I48 -> 0 | K48: 0 | L48: =SUM(J48:K48) -> 0 | M48: =IF(L48<=R48,L48*1.1,R48*1.1) -> 0 | Q48: =CONCATENATE(C48," ",D48) -> Impianti climatizzazione con SI)Sistemi Ibridi | R48: 30000 | S48: ok | U48: 0 | W48: 0 | Y48: 0 | AA48: 0 | AF48: =IF(ISNUMBER(AD48)=TRUE,IF(AD48<>0,F48*AE48/AD48,0),0) -> 0 | AG48: =IF(LEFT(D48,3)="CC)",IF(AD48<=35,240,216),IF(D48="PC)Aria/Aria",720,IF(D48="PC)Altro",1560,IF(D48="PC)Geotermiche",2280,IF(LEFT(D48,4)="PCA)",1560,IF(LEFT(D48,3)="SI)",1860,0)))))) -> 1860 | AH48: =IF(AF48<>0,IF(AF48>AG48,"KO","ok"),"ok") -> ok
C49: SA) Scaldacqua a pompa di calore | F49: 0 | G49: 0 | H49: =SUM(F49:G49) -> 0 | I49: =F49*'Dati Gen'!$J$20+G49*'Dati Gen'!$J$19 -> 0 | J49: =H49+I49 -> 0 | K49: 0 | L49: =SUM(J49:K49) -> 0 | M49: =IF(L49<=R49,L49*1.1,R49*1.1) -> 0 | Q49: SA) Scaldacqua a pompa di calore | R49: =INT(30000/1.1) -> 27272 | S49: ok | U49: 0 | W49: 0 | Y49: 0 | AA49: 0 | AF49: =IF(ISNUMBER(AD49)=TRUE,IF(AD49<>0,F49*AE49/AD49,0),0) -> 0 | AG49: =IF(AD49<=150,1200,1500) -> 1200 | AH49: =IF(AF49<>0,IF(AF49>AG49,"KO","ok"),"ok") -> ok
C50: Totali Impianti ed SA) | F50: =SUM(F48:F49) -> 0 | G50: =SUM(G48:G49) -> 0 | H50: 0 | I50: 0 | J50: 0 | K50: 0 | L50: 0 | M50: 0 | Q50: Totali Impianti ed SA) | R50: =INT(30000/1.1) -> 27272 | S50: ok | U50: 0 | W50: 0 | Y50: 0 | AA50: 0
C51: CO) Sistemi di Microgenerazione | E51: Motore endotermico / altro | F51: 0 | G51: 0 | H51: =SUM(F51:G51) -> 0 | I51: =F51*'Dati Gen'!$J$20+G51*'Dati Gen'!$J$19 -> 0 | J51: =H51+I51 -> 0 | K51: 0 | L51: =SUM(J51:K51) -> 0 | M51: =IF(L51<=R51,L51*1.1,R51*1.1) -> 0 | Q51: =C51 -> CO) Sistemi di Microgenerazione | R51: =INT(100000/1.1) -> 90909 | S51: ok | U51: =IF(L51<R51,L51,R51) -> 0 | W51: =IF(L51>R51,L51-R51,0) -> 0 | Y51: =IF(M51<>0,J51*M51/L51,0) -> 0 | AA51: =IF(M51<>0,K51*M51/L51,0) -> 0 | AF51: =IF(ISNUMBER(AD51)=TRUE,IF(AD51<>0,F51*AE51/AD51,0),0) -> 0 | AG51: =IF(E51="Celle a combustibile",30000,3720) -> 3720 | AH51: =IF(AF51<>0,IF(AF51>AG51,"KO","ok"),"ok") -> ok
C52: IB) Generatori a Biomassa | F52: 0 | G52: 0 | H52: 0 | I52: =F52*'Dati Gen'!$J$20+G52*'Dati Gen'!$J$19 -> 0 | J52: 0 | K52: 0 | L52: 0 | M52: 0 | Q52: IB) Generatori a Biomassa | R52: =INT(30000/1.1) -> 27272 | S52: ok | U52: 0 | W52: 0 | Y52: 0 | AA52: 0 | AF52: 0 | AG52: =IF(AD51<=35,420,540) -> 420 | AH52: =IF(AF52<>0,IF(AF52>AG52,"KO","ok"),"ok") -> ok
C53: BA) Building Automation | F53: 0 | G53: 0 | H53: 0 | I53: =F53*'Dati Gen'!$J$20+G53*'Dati Gen'!$J$19 -> 0 | J53: 0 | K53: 0 | L53: 0 | M53: 0 | Q53: BA) Building Automation | R53: =15000/1.1 -> 13636.36364 | S53: ok | U53: 0 | W53: 0 | Y53: 0 | AA53: 0 | AF53: 0 | AG53: 60 | AH53: =IF(AF53<>0,IF(AF53>AG53,"KO","ok"),"ok") -> ok
C54: ST) Collettori Solari | E54: Scoperti | F54: 0 | G54: 0 | H54: 0 | I54: =F54*'Dati Gen'!$J$20+G54*'Dati Gen'!$J$19 -> 0 | J54: 0 | K54: 0 | L54: 0 | M54: 0 | Q54: ST) Collettori Solari | R54: =INT(60000/1.1) -> 54545 | S54: ok | U54: 0 | W54: 0 | Y54: 0 | AA54: 0 | AF54: 0 | AG54: =IF(E55="Scoperti",900,IF(E55="Piani vetrati",1200,1500)) -> 1500 | AH54: =IF(AF54<>0,IF(AF54>AG54,"KO","ok"),"ok") -> ok
C55: FV) Solare Fotovoltaico [ kWp ] | E55: 13.3 | F55: 0 | G55: 0 | H55: 0 | I55: =F55*'Dati Gen'!$J$20+G55*'Dati Gen'!$J$19 -> 0 | J55: 0 | K55: 0 | L55: 0 | M55: 0 | Q55: =C55 -> FV) Solare Fotovoltaico [ kWp ] | R55: =IF(ISNUMBER(FIND("ristr",C55))=FALSE,IF(E55*2400<48000*N_Uimm,E55*2400,48000*N_Uimm),IF(E55*1600<48000*N_Uimm,E55*1600,48000*N_Uimm)) -> 31920 | S55: ok | U55: 0 | W55: 0 | Y55: 0 | AA55: 0 | AF55: 0 | AG55: 2400 | AH55: =IF(AF55<>0,IF(AF55>AG55,"KO","ok"),"ok") -> ok
C56: AC) Sistema di Accumulo [ kWh ] | E56: 23.1 | F56: 0 | G56: 0 | H56: 0 | I56: =F56*'Dati Gen'!$J$20+G56*'Dati Gen'!$J$19 -> 0 | J56: 0 | K56: 0 | L56: 0 | M56: 0 | Q56: =C56 -> AC) Sistema di Accumulo [ kWh ] | R56: =IF(E56*1000<48000*N_Uimm,E56*1000,48000*N_Uimm) -> 23100 | S56: ok | U56: 0 | W56: 0 | Y56: 0 | AA56: 0 | AF56: 0 | AG56: 1000 | AH56: ok
C57: CR) Colonnine di Ricarica | E57: 1 | F57: 0 | G57: 0 | H57: 0 | I57: =F57*'Dati Gen'!$J$20+G57*'Dati Gen'!$J$19 -> 0 | J57: 0 | K57: 0 | L57: 0 | M57: 0 | Q57: CR) Colonnine di Ricarica | R57: =IF(TipoEdif=1,2000,IF(N_Uimm>8,1200*N_Uimm,1500*N_Uimm)) -> 2000 | S57: ok | U57: 0 | W57: 0 | Y57: 0 | AA57: 0 | AF57: 0 | AG57: 1500 | AH57: ok
C58: EBA) Eliminazione Barriere architettoniche | F58: 0 | G58: 0 | H58: =SUM(F58:G58) -> 0 | I58: =F58*'Dati Gen'!$J$20+G58*'Dati Gen'!$J$19 -> 0 | J58: =H58+I58 -> 0 | K58: 0 | L58: 0 | M58: 0 | Q58: EBA) Eliminazione Barriere architettoniche | R58: =IF(F58>0,IF(96000*N_Uimm > F15,96000*N_Uimm - F15,0),96000*N_Uimm ) -> 96000 | S58: ok | U58: 0 | W58: 0 | Y58: 0 | AA58: 0 | AF58: 0 | AG58: 0 | AH58: ok
C59: Totale Interventi trainati | F59: =F46+F47+SUM(F50:F58) -> 0 | G59: 0 | H59: 0 | I59: 0 | J59: 0 | K59: 0 | L59: 0 | M59: 0 | Q59: =C59 -> Totale Interventi trainati | U59: =U46+U47+SUM(U50:V58) -> 0 | W59: =W46+W47+SUM(W50:X58) -> 0 | Y59: =Y46+Y47+SUM(Y50:Z58) -> 0 | AA59: =AA46+AA47+SUM(AA50:AB58) -> 0
C78: SimMZ
C80: TOTALE INTERVENTI 110 | F80: Importo Lavori | G80: Incidenza Sicurezza | H80: Imponibile | I80: Iva | J80: Importo c.iva | K80: Spese tecniche | L80: Totale | M80: Credito Spettante 110% Spesa Ammessa | Q80: =C80 -> TOTALE INTERVENTI 110 | U80: Spesa Ammessa | W80: Quota Eccedente Massimale Spesa | Y80: Credito Spettante 110% Spesa Ammessa Quota Impresa | Quota Tecnici
F81: =F16+F59 -> 100 | G81: 10 | H81: 110 | I81: 11 | J81: 121 | K81: 0 | L81: 121 | M81: 133.1 | U81: =U16+U59 -> 121 | W81: =W16+W59 -> 0 | Y81: =Y16+Y59 -> 133.1 | AA81: =AA16+AA59 -> 0
AD86: =IF(COUNTIF(AH89:AH92,"KO")>0,"ATTENZIONE! Massimale Spesa MITE non Asseverabile","") -> 
C87: ALTRI INTERVENTI | Q87: =CONCATENATE("Verifica Massimali di Spesa ",C87) -> Verifica Massimali di Spesa ALTRI INTERVENTI | AD87: Spesa Specifica MITE | AF87: =C87 -> ALTRI INTERVENTI
C88: Interventi | E88: x% Credito ceduto | F88: Importo Lavori | G88: Incidenza Sicurezza | H88: Imponibile | I88: Iva | J88: Importo c.iva | K88: Spese tecniche | L88: Totale | M88: Credito Spettante x% Spesa Ammessa | R88: Massimale spesa | S88: Verifica Max | U88: Spesa Ammessa | W88: Quota Eccedente Massimale Spesa | Y88: Credito Spettante x% Spesa Ammessa Quota Impresa | Quota Tecnici | AD88: Sup. Interv. / Unita Misura | AE88: Incidenza Materiale % | AF88: Spesa Specifica | AG88: Spesa Specifica Massima ammissibile | AH88: Verifica
C89: Ristrutturazione | E89: 0.5 | G89: =IF(ImpLav<>0,F89*ImpSicLav/ImpLav,0) -> 0 | H89: =F89+G89 -> 0 | I89: =H89*AliqIva -> 0 | J89: =H89+I89 -> 0 | K89: 0 | L89: =SUM(J89:K89) -> 0 | M89: =IF(L89<=R89,L89*E89,R89*E89) -> 0 | Q89: =IF(C89<>"",C89,"") -> Ristrutturazione | R89: =96000*N_Uimm -> 96000 | S89: =IF(L89>R89,"KO","ok") -> ok | U89: =IF(L89<R89,L89,R89) -> 0 | W89: =IF(L89>R89,L89-R89,0) -> 0 | Y89: =IF(M89<>0,J89*M89/L89,0) -> 0 | AA89: =IF(M89<>0,K89*M89/L89,0) -> 0 | AF89: =IF(ISNUMBER(AD89)=TRUE,IF(AD89<>0,F89/AD89,0),0) -> 0 | AG89: 0 | AH89: =IF(AG89<>0,IF(AF89>AG89,"KO","ok"),"ok") -> ok
C90: Bonus facciata | E90: 0.6 | F90: 0 | G90: =IF(ImpLav<>0,F90*ImpSicLav/ImpLav,0) -> 0 | H90: =F90+G90 -> 0 | I90: =H90*AliqIva -> 0 | J90: =H90+I90 -> 0 | K90: =IF(ImpLav<>0,F90*ImpTecLav/ImpLav,0) -> 0 | L90: =SUM(J90:K90) -> 0 | M90: =IF(L90<=R90,L90*E90,R90*E90) -> 0 | Q90: =IF(C90<>"",C90,"") -> Bonus facciata | R90: =96000*N_Uimm -> 96000 | S90: =IF(L90>R90,"KO","ok") -> ok | U90: =IF(L90<R90,L90,R90) -> 0 | W90: =IF(L90>R90,L90-R90,0) -> 0 | Y90: =IF(M90<>0,J90*M90/L90,0) -> 0 | AA90: =IF(M90<>0,K90*M90/L90,0) -> 0 | AF90: =IF(ISNUMBER(AD90)=TRUE,IF(AD90<>0,F90/AD90,0),0) -> 0 | AG90: 0 | AH90: =IF(AG90<>0,IF(AF90>AG90,"KO","ok"),"ok") -> ok
C91: Bonus Casa | E91: 0.7 | F91: 0 | G91: =IF(ImpLav<>0,F91*ImpSicLav/ImpLav,0) -> 0 | H91: =F91+G91 -> 0 | I91: =H91*AliqIva -> 0 | J91: =H91+I91 -> 0 | K91: =IF(ImpLav<>0,F91*ImpTecLav/ImpLav,0) -> 0 | L91: =SUM(J91:K91) -> 0 | M91: =IF(L91<=R91,L91*E91,R91*E91) -> 0 | Q91: =IF(C91<>"",C91,"") -> Bonus Casa | R91: =96000*N_Uimm -> 96000 | S91: =IF(L91>R91,"KO","ok") -> ok | U91: =IF(L91<R91,L91,R91) -> 0 | W91: =IF(L91>R91,L91-R91,0) -> 0 | Y91: =IF(M91<>0,J91*M91/L91,0) -> 0 | AA91: =IF(M91<>0,K91*M91/L91,0) -> 0 | AF91: =IF(ISNUMBER(AD91)=TRUE,IF(AD91<>0,F91/AD91,0),0) -> 0 | AG91: 0 | AH91: =IF(AG91<>0,IF(AF91>AG91,"KO","ok"),"ok") -> ok
G92: =IF(ImpLav<>0,F92*ImpSicLav/ImpLav,0) -> 0 | H92: =F92+G92 -> 0 | I92: =H92*AliqIva -> 0 | J92: =H92+I92 -> 0 | K92: =IF(ImpLav<>0,F92*ImpTecLav/ImpLav,0) -> 0 | L92: =SUM(J92:K92) -> 0 | M92: =IF(L92<=R92,L92*E92,R92*E92) -> 0 | Q92: =IF(C92<>"",C92,"") ->  | R92: =96000*N_Uimm -> 96000 | S92: =IF(L92>R92,"KO","ok") -> ok | U92: =IF(L92<R92,L92,R92) -> 0 | W92: =IF(L92>R92,L92-R92,0) -> 0 | Y92: =IF(M92<>0,J92*M92/L92,0) -> 0 | AA92: =IF(M92<>0,K92*M92/L92,0) -> 0 | AF92: =IF(ISNUMBER(AD92)=TRUE,IF(AD92<>0,F92/AD92,0),0) -> 0 | AG92: 0 | AH92: =IF(AG92<>0,IF(AF92>AG92,"KO","ok"),"ok") -> ok
C93: Totale Altri Interventi : | F93: =SUM(F89:F92) -> 0 | G93: =SUM(G89:G92) -> 0 | H93: 0 | I93: 0 | J93: 0 | K93: =SUM(K89:K92) -> 0 | L93: 0 | M93: =SUM(M89:M92) -> 0 | R93: =C93 -> Totale Altri Interventi : | U93: =SUM(U89:V92) -> 0 | W93: =SUM(W89:X92) -> 0 | Y93: =SUM(Y89:Z92) -> 0 | AA93: =SUM(AA89:AB92) -> 0
C99: TOTALI PROGETTO | F99: Importo Lavori | G99: Incidenza Sicurezza | H99: Imponibile | I99: Iva | J99: Importo c.iva | K99: Spese tecniche | L99: Totale | M99: Credito Spettante | Q99: =C99 -> TOTALI PROGETTO | U99: Spesa Ammessa | W99: Quota Eccedente Massimale Spesa | Y99: Credito Spettante Quota Impresa | Quota Tecnici
F100: =F81+F93 -> 100 | G100: =G81+G93 -> 10 | H100: 110 | I100: 11 | J100: 121 | K100: 0 | L100: 121 | M100: 133.1 | U100: =U81+U93 -> 121 | W100: =W81+W93 -> 0 | Y100: =Y81+Y93 -> 133.1 | AA100: =AA81+AA93 -> 0
C104: Quota % effettiva per cessione credito a Banca o Impresa "Interventi 110" | H104: =100/110 -> 0.9090909091 | I104: =H104*110 -> 100 | J104: Importo Ricevuto | K104: =Detraz110*H104 -> 121 | L104: Costo Cessione 110 | M104: =SpesaAmmessa110-K104 -> 0
G105: Quota % effettiva per cessione credito a Banca o Impresa "Altri Interventi" | H105: 0.8 | I105: =H105*100 -> 80 | J105: Importo Ricevuto | K105: =M93*H105 -> 0 | L105: Costo Cessione Altri | M105: =M93-K105 -> 0
L107: Quota Impresa | M107: Quota Tecnici
G108: Quota Eccedente Massimali Spesa "Interventi 110" | H108: =QuotaEcced110 -> 0 | I108: Credito Netto a seguito Cessione | K108: =SpesaAmmessa110-M104 -> 121 | L108: =IF(Detraz110<>0,QuotaImpresa110*K108/Detraz110,0) -> 121 | M108: =IF(Detraz110<>0,QuotaTecnici110*K108/Detraz110,0) -> 0
G109: Quota Eccedente Massimali Spesa "Altri Interventi" | H109: =W93 -> 0 | I109: Credito Netto a seguito Cessione | K109: =M93-M105 -> 0 | L109: =IF(M93<>0,Y93*K109/M93,0) -> 0 | M109: =IF(M93<>0,AA93*K109/M93,0) -> 0
I110: Quota Cliente x Interventi 110 | K110: =IF(Totale110-K108>0,Totale110-K108,0) -> 0 | L110: =IF(Detraz110<>0,K110*QuotaImpresa110/Detraz110,0) -> 0 | M110: =IF(Detraz110<>0,K110*QuotaTecnici110/Detraz110,0) -> 0
I111: Quota Cliente x Altri Interventi | K111: =IF(L93-K109>0,L93-K109,0) -> 0 | L111: =IF(M93<>0,K111*Y93/M93,0) -> 0 | M111: =IF(M93<>0,K111*AA93/M93,0) -> 0
I112: Quota Totale a Carico Cliente | K112: =SUM(K110:K111) -> 0 | L112: =SUM(L110:L111) -> 0 | M112: =SUM(M110:M111) -> 0
